Cogmind - Beta 9.1 *** ADVENTURER MODE // 2019.11.10 @ 19:50:16 // Halloween2019/Abominations Player: core_nxt Result: Core destroyed Performance ------------- Evolutions (0) 0 Regions Visited (1) 200 Robots Destroyed (13) 65 Value Destroyed (750) 750 Prototype IDs (2) 40 Alien Tech Used (0) 0 Bonus (0) 0 TOTAL SCORE: 1055 Bonus ------- None Cogmind --------- Core Integrity 0/250 Matter 300/300 Energy 125/125 System Corruption 1% Temperature Cool (790) Location -10/Materials Parts ------- Power (1) Light Ion Engine Propulsion (2) Light Treads Aluminum Leg Utility (2) Large Storage Unit Weapon (2) Mining Laser Hammer Inventory (10) Aluminum Leg Hover Unit Medium Storage Unit Visual Processing Unit Sensor Array Grenade Launcher Peak State ------------ Power Light Ion Engine Propulsion Aluminum Leg Aluminum Leg Utility Small Storage Unit Sensor Array Weapon Assault Rifle Assault Rifle Inventory Light Ion Engine Light Treads Light Treads Visual Processing Unit Medium Laser [Rating: 7] Favorites ----------- Power Light Ion Engine Engine Light Ion Engine Propulsion Aluminum Leg Treads Light Treads Leg Aluminum Leg Wheel Wheel Utility Large Storage Unit Device Sensor Array Storage Large Storage Unit Weapon Assault Rifle Energy Gun Medium Laser Ballistic Gun Assault Rifle Launcher Grenade Launcher Special Weapon Mining Laser Impact Weapon Hammer Build | -11 -10 ------- Run | Scr Mat Slots Evolved . | . . Power . | . . Propulsion . | . . Utility . | . . Weapon . | . . Parts Attached 26 | 6 20 Power 2 | 1 1 Engine 2 | 1 1 Core . | . . Reactor . | . . Propulsion 9 | 2 7 Treads 2 | . 2 Leg 6 | 1 5 Wheel 1 | 1 . Hover . | . . Flight . | . . Utility 4 | 1 3 Device 1 | . 1 Storage 3 | 1 2 Processor . | . . Hackware . | . . Protection . | . . Artifact . | . . Weapon 11 | 2 9 Energy Gun 4 | . 4 Energy Cannon . | . . Ballistic Gun 4 | 2 2 Ballistic Cannon . | . . Launcher 1 | . 1 Special Weapon 1 | . 1 Impact Weapon 1 | . 1 Slashing Weapon . | . . Piercing Weapon . | . . Special Melee Weapon . | . . Unidentified Prototypes . | . . Parts Lost 7 | . 7 Power 1 | . 1 Propulsion 3 | . 3 Utility . | . . Weapon 3 | . 3 Highest Loss Streak 4 | . 4 Average Slot Usage (%) 84 | . 84 Engine 10 | . 10 Treads 10 | . 10 Leg 14 | . 14 Device 2 | . 2 Storage 20 | . 20 Energy Gun 5 | . 5 Ballistic Gun 8 | . 8 Launcher 1 | . 1 Special Weapon 4 | . 4 Impact Weapon 4 | . 4 Naked Turns . | . . Heaviest Build 31 | 11 31 Greatest Support 40 | 10 40 Greatest Overweight (x) 8 | 1 8 Average Overweight (x) . | . 1 Largest Inventory Capacity 14 | 6 14 Average Capacity 11 | 5 11 Most Carried 8 | 6 8 Average Carried 6 | 3 6 Final Capacity 10 | 6 10 Final Carried 6 | 6 6 Class Distribution -------------------- 100% | Mutant Dominant Class ---------------- Mutant | -10/Materials Resources | -11 -10 ----------- Run | Scr Mat Matter Collected 703 | 239 464 Remotely . | . . Salvage Created 576 | . 576 Parts 41 | . 41 Haulers Intercepted . | . . Recyclers Shooed . | . . Parts Field Recycled . | . . Retrieved Matter . | . . Parts Self-Destructed . | . . Prevented . | . . Kills | -11 -10 ------- Run | Scr Mat Combat Hostiles Destroyed 13 | . 13 Guns 12 | . 12 AOE 1 | . 1 Classes Destroyed 2 | . 2 Swarmer 1 | . 1 Abomination 12 | . 12 Best Kill Streak 3 | . 3 Combat Bots Only 3 | . 3 Max Kills in Single Turn 2 | . 2 Gunslinging 1 | . 1 Exploded 1 | . 1 Melee . | . . Uniques/NPCs Destroyed . | . . Combat | -11 -10 -------- Run | Scr Mat Damage Taken 1155 | . 1155 Core 270 | . 270 Absorbed by Shields . | . . Core Remaining (%) 100 | 100 . Volleys Fired 61 | . 61 Largest 2 | . 2 Hottest 50 | . 50 Shots Fired 99 | . 99 Gun 98 | . 98 Cannon . | . . Launcher 1 | . 1 Special . | . . Kinetic 86 | . 86 Thermal 12 | . 12 Explosive 1 | . 1 Electromagnetic . | . . Robot Hit Streak 28 | . 28 Robot Miss Streak 2 | . 2 Penetration Max . | . . Secondary Targets 4 | . 4 Max Gunslinging Chain 1 | . 1 Shots Hit Robots 82 | . 82 Core Hits 33 | . 33 Critical Hits 1 | . 1 Critical Kills 1 | . 1 Critical Parts Destroyed . | . . Melee Attacks . | . . Impact . | . . Slashing . | . . Piercing . | . . Sneak Attacks . | . . Combat Hostiles . | . . Follow-up Attacks . | . . Damage Inflicted 1065 | . 1065 Guns 1024 | . 1024 Cannons . | . . Explosions 41 | . 41 Melee . | . . Ramming . | . . Kinetic 851 | . 851 Thermal 173 | . 173 Explosive 41 | . 41 Electromagnetic . | . . Impact . | . . Slashing . | . . Piercing . | . . Highest Corruption 1 | . 1 Average Corruption 1 | . 1 Corruption Purged . | . . Effects 4 | . 4 Message Errors 2 | . 2 Energy Discharges 2 | . 2 Overload Shots . | . . Overflow Damage . | . . Projectiles . | . . Explosions . | . . Melee . | . . Knockbacks . | . . Impact . | . . Kinetic . | . . Secondary . | . . Self-Inflicted Damage 29 | . 29 Shots 1 | . 1 Rammed . | . . Targets Rammed . | . . Kicked . | . . Crushed . | . . Highest Temperature 890 | . 890 Average Temperature 207 | . 207 Received Heat Transfer 192 | . 192 Effects 23 | . 23 Shutdowns 5 | . 5 Energy Bleed 4 | . 4 Interference 5 | . 5 Matter Decay 1 | . 1 Short Circuit 2 | . 2 Damage (minor) 5 | . 5 Damage (core) 1 | . 1 Siege Activations . | . . Robots Corrupted . | . . Combat Hostiles . | . . Parts Fried . | . . Impact Corruptions . | . . Robots Melted . | . . Combat Hostiles . | . . Parts Melted . | . . Heat Transferred 90 | . 90 Parts Sabotaged . | . . Parts Stolen . | . . Parts Stripped . | . . Power Chain Reactions . | . . Missiles Intercepted . | . . Alert | -11 -10 ------- Run | Scr Mat Peak Influence 40 | . 40 Average Influence 5 | . 5 Maximum Alert Level . | . . Low Security (%) 100 | . . Level 1 . | . . Level 2 . | . . Level 3 . | . . Level 4 . | . . Level 5 . | . . High Security . | . . Max Security . | . . Squads Dispatched 1 | . 1 Investigation 1 | . 1 Extermination . | . . Reinforcement . | . . Assault . | . . Garrison . | . . Intercept . | . . Construction Impeded . | . . Haulers Reinforced . | . . Stealth | -11 -10 --------- Run | Scr Mat Distress Signals 3 | . 3 Communications Jammed . | . . Distress Signals . | . . Times Spotted 15 | . 15 Peak Tracking Total 4 | . 4 Tactical Retreats 1 | . 1 Traps | -11 -10 ------- Run | Scr Mat Traps Triggered . | . . Indirectly . | . . Trap Hack Attempts . | . . Triggered . | . . Disarmed . | . . Reprogrammed . | . . Reused . | . . Traps Extracted . | . . Installed . | . . Triggered . | . . Machines | -11 -10 ---------- Run | Scr Mat Machines Disabled . | . . Max in Single Turn . | . . Machines Sabotaged . | . . Garrisons Compromised . | . . Overloaded Fab Kills . | . . Fab Network Shutdowns . | . . Hacking | -11 -10 --------- Run | Scr Mat Machines Accessed 4 | . 4 Terminals 4 | . 4 Fabricators . | . . Repair Stations . | . . Recycling Units . | . . Scanalyzers . | . . Garrison Access . | . . Total Hacks 7 | . 7 Successful 6 | . 6 Failed 1 | . 1 Catastrophic . | . . Database Lockouts . | . . Manual . | . . Terminals 7 | . 7 Fabricators . | . . Repair Stations . | . . Recycling Units . | . . Scanalyzers . | . . Garrison Access . | . . Terminal Hacks 6 | . 6 Record 1 | . 1 Prototype ID Bank 1 | . 1 Emergency Access Points 1 | . 1 Alert Level 1 | . 1 Maintenance Status 1 | . 1 Hauler Manifests 1 | . 1 Fabricator Hacks . | . . Repair Station Hacks . | . . Recycling Unit Hacks . | . . Scanalyzer . | . . Garrison Access Hacks . | . . Unauthorized Hacks . | . . Terminals . | . . Fabricators . | . . Repair Stations . | . . Recycling Units . | . . Scanalyzers . | . . Garrison Access . | . . Data Cores Recovered . | . . Used . | . . Hacking Detections 1 | . 1 Full Trace Events . | . . Feedback Events . | . . Feedback Blocked . | . . Robot Schematics Acquired . | . . Robots Built . | . . Matter . | . . Time . | . . Total Robot Build Rating . | . . Part Schematics Acquired . | . . Parts Built . | . . Matter . | . . Time . | . . Total Part Build Rating . | . . Parts Repaired . | . . Time . | . . Parts Recycled . | . . Recycled Matter . | . . Retrieved Matter . | . . Retrieved Components . | . . Parts Scanalyzed . | . . Part Schematics Acquired . | . . Parts Damaged . | . . Bothacking | -11 -10 ------------ Run | Scr Mat Used RIF Installer . | . . Robots Hacked . | . . Non-combat . | . . Combat . | . . Robot Hacks Applied . | . . Relay Couplers Released . | . . Robots Rewired . | . . Allies Hacked . | . . Hacks Repelled . | . . Allies | -11 -10 -------- Run | Scr Mat Total Allies . | . . Largest Group . | . . Highest-Rated Group . | . . Highest-Rated Ally . | . . Total Orders . | . . Ally Attacks . | . . Total Damage . | . . Kills . | . . Allies Corrupted . | . . Allies Melted . | . . Intel | -11 -10 ------- Run | Scr Mat Robot Analysis Total . | . . Derelict Logs Recovered . | . . Drone Launches . | . . Drone Recoveries . | . . Exploration | -11 -10 ------------- Run | Scr Mat Turns Passed 1032 | 75 957 Spaces Moved 482 | 45 437 Core 3 | 1 2 Treads 251 | . 251 Legs 226 | 42 184 Wheels 2 | 2 . Hover . | . . Flight . | . . Fastest Speed 50 | 50 120 Average Speed 166 | 136 170 Slowest Speed 450 | 150 450 Overloaded Moves . | . . Propulsion Burnouts . | . . Robots Hopped . | . . Cave-ins Triggered . | . . Exploration Rate (%) 39 | 5 73 Regions Visited 1 Branch Regions . Pre-discovered Areas . | . . Known Exits Taken . | . . Unknown Exits Taken 1 | 1 . Scrap Searched . | . . Spaces Dug . | . . Terrain Destroyed 6 | . 6 Melee . | . . Projectile . | . . AOE 6 | . 6 Actions | -11 -10 --------- Run | Scr Mat Total 605 | 56 549 Wait 20 | . 20 Move 481 | 44 437 Hop . | . . Pick Up 10 | 6 4 Fast Attach 18 | 6 12 Attach 6 | . 6 Detach 3 | . 3 Swap 2 | . 2 Drop 4 | . 4 Fire 61 | . 61 Melee . | . . Ram . | . . Kick . | . . Crush . | . . Escape Stasis . | . . Rewire . | . . Trap . | . . Miscellaneous . | . . Route ------- -11/Scrapyard -10/Materials (discovered 2 exits: [*Mat x2]) History --------- Turn | Location | Event 28 | -11/Scrapyard | Discovered new exit (range 15) 76 | -11/Scrapyard | Entered Materials 314 | -10/Materials | Build established: Mutant 404 | -10/Materials | Lost 4 parts (1p1n2w) 489 | -10/Materials | Core integrity fell below 50% 544 | -10/Materials | Discovered new exit (range 10) 621 | -10/Materials | Core integrity fell below 20% 758 | -10/Materials | Discovered new exit (range 9) 905 | -10/Materials | Discovered new exit (range 14) 1034 | -10/Materials | Core destroyed Last Messages --------------- minimizes built-in battery space to reduce weight for certain robot designs, especially those with strict weight restrictions such as hovering and flight-based models. >>Enumerate(Maintenance) Found 3 registered maintenance bots. 2 Workers 1 Builder Downloaded coordinate data. 00758_ EXIT=FOUND (Blocked) 00791_ Unstable Anomaly suddenly flashes brightly. 00796_ System corrupted: Energy discharge (-48). 00853_ D9AGXP>MZ 3, SPRUJEU 00905_ EXIT=FOUND 00920_ Acquired 30 matter. 01029_ Power failure, Lgt. Ion Engine shutdown. 01029_ Overheating: Lrg. Storage Unit damaged (-99). 01030_ Overheating: Short circuit. 01030_ Lgt. Treads permanently disabled. 01032_ Overheating: Mining Laser damaged (-17). 01034_ Overheating: Core damaged (-42). Map ----- +----------------------------------------------------+ | | | ????????????????????????????????????????? | | ???????????????????????????##########???? | | ?????????????????######????# #???? | | ???????########### ###### """ #???? | | ???????# ## + """ ##### | | ???????# ## ### """ # # | | ???????###+####### ## ### # < # | | ??###### #### ## ## """ # | | # # + T ## """ +% | | # """ # ####### ## """ # # | | # """ # #?????## ### # # | | # """ # #??????# #?########## # | | # #+############### #?????????# | | # """ # ???????? | | # """ + ??????? | | # """ # % ????? | | # ####+###########+###????# # | | # """ # #??????????????# ###### | | # """ # #??????????????# ?????? | | # """ # #??????????????# ??????? | | # # #??????????????# ??????? | | ??###### #??????????????? ???????? | | ???????# #???????????????????????? | | ???????# ####????????????????????? | | ???????# @ #????????????????????? | | ???????# ####????????????????????? | | ???????########+#???????????????????????? | | ??????????????? #???????????????????????? | | ??????????????? #???????????????????????? | | ??????????????? ???????????????? ###### | | ??????????????? ??????????????? | | ??????????????? ?????????????? | | ???????????????? ?????????????? | | ???????????????? ????????????????####### | | ?????????############################# | | ?????????# % | | ?????????# < | | ?????????# % % | | ?????????### ##############+### | | ???????????# " #?????????# ## | | ???????????# """ #?????????# ## | | ???????????# """ ########### ## % | | ???????????# """ # ## ## % | | ???????????# "" # ## = % | | ????####+### """ #% ## % %[% % | | ???? "" %# % ## %% | | ??????# "" + ##### ###/ | | ??????# " # """ #### | | ??????# # """ + + T """ | +----------------------------------------------------+ Best States ------------- Heat Dissipation 25 Energy Generation 10 Energy Capacity 125 Matter Stores 300 Matter Capacity 300 Sight Range 16 Robot Scan Range 10 Terrain Scan Density 10 Resistance: KI 20 Resistance: TH 20 Resistance: EX 20 Resistance: EM 20 Resistance: I 20 Resistance: S 20 Resistance: P 20 Evasion (%) 40 Recoil Reduction 2 Item Schematics ----------------- None Robot Schematics ------------------ None Fabricated ------------ Nothing Alien Tech Used ----------------- None Achievements -------------- None Challenges ------------ None Game ------ Seed DeepProcessingRay Manual? 0 Play Time 00:12:08 Cumulative 68.5 hours Start 2019.11.10 @ 19:15:14 End 2019.11.10 @ 19:50:16 Sessions 1 Manual Loads 0 Difficulty Adventurer Special Mode Halloween2019/Abominations Game No. 64 Rogue 62 Adventurer 1 Explorer 0 Win Type - Total 0 Types 0/0/0/0/0/0/0 Lore% 33 Gallery% 42 Achievement% 33 Wizard Run 0 Options --------- ASCII 0 Keyboard 0 Movement Numpad Keybinds 0 Fullscreen 2 Font 18/X11Bold Map View 76x50 Tactical HUD 1 Map Filters NONE Filters NONE Steam 1 RUN: 6970e1e5-e8a4-438b-a0f2-19b84721b6ce